bitfinex-derivatives/quotes_ETHF0:USTF0_20250911
["timestamp","ask_amount","ask_price","bid_price","bid_amount"]
[1757586479314,0.5273,4424.6,4424.5,3.8007]
[1757586480610,0.7366,4424.6,4424.5,3.8007]
[1757586481497,0.9459,4424.6,4424.5,3.6105]
[1757586485016,0.7366,4424.6,4424.5,3.8007]
[1757586485205,0.5273,4424.6,4424.5,3.8007]
[1757586487420,0.7366,4424.6,4424.5,3.8007]
[1757586487712,0.9459,4424.6,4424.5,3.6105]
[1757586488013,0.8444,4424.5,4424.4,0.1971]
[1757586488510,1.0714,4424.5,4424.4,0.1971]
[1757586488715,1.0714,4424.5,4424.4,0.4027]
[1757586490117,0.5356,4424.5,4424.4,0.5929]
[1757586490721,0.3086,4424.5,4424.4,0.5929]
[1757586492815,0.5346,4424.5,4424.4,0.5929]
[1757586493318,0.8611,4424.5,4424.4,0.5929]
[1757586494615,1.0704,4424.5,4424.4,0.4027]
[1757586495012,0.3086,4424.4,4424.0,3.2078]
[1757586495207,0.7272,4424.1,4424.0,3.6105]
[1757586496816,0.7272,4424.1,4424.0,3.8007]
[1757586498617,0.7272,4424.1,4424.0,3.6105]
[1757586499110,0.7272,4424.1,4424.0,3.4049]
[1757586502621,0.7272,4424.1,4424.0,3.2078]
[1757586503524,0.7272,4424.1,4424.0,3.4049]
[1757586509323,0.3086,4424.1,4424.0,3.7901]
[1757586509518,0.3432,4424.5,4424.0,3.5993]
[1757586509719,0.226,4424.5,4424.4,0.5985]
[1757586512521,0.5159,4424.5,4424.4,0.5985]
[1757586514130,0.226,4424.5,4424.4,0.5985]
[1757586514630,0.2899,4425.1,4424.4,4.86072]
[1757586514926,0.2899,4425.1,4425.0,3.2078]
[1757586518831,0.6865,4425.1,4425.0,3.2078]
[1757586521630,0.4848,4425.1,4425.0,3.2078]
[1757586521837,0.2899,4425.1,4425.0,3.2078]
[1757586523140,0.4848,4425.1,4425.0,3.2078]
[1757586523436,0.6865,4425.1,4425.0,3.2078]
[1757586527134,0.808,4425.0,4424.9,0.0419]
[1757586527628,0.808,4425.0,4424.6,0.052]
[1757586529425,0.6865,4424.7,4424.6,0.052]
[1757586529823,0.1215,4424.5,4424.3,3.2078]
[1757586530024,0.6865,4424.4,4424.3,3.2078]
[1757586530538,0.2899,4424.4,4424.3,3.2078]
[1757586532841,0.4848,4424.4,4424.3,3.2078]
[1757586533235,0.6865,4424.4,4424.3,3.2078]
[1757586537451,0.9135,4424.4,4424.3,3.2078]
[1757586539365,0.9135,4424.4,4424.2,0.0419]
[1757586539957,0.1215,4424.5,4424.3,0.40673]
[1757586540154,0.3132,4424.6,4424.3,0.40673]
[1757586540655,0.3132,4424.5,4424.3,3.61453]
[1757586540856,0.3132,4424.6,4424.3,3.61453]
[1757586541068,0.3132,4424.5,4424.4,0.40672]
[1757586541264,0.3132,4424.6,4424.5,0.40671]
[1757586543163,0.4347,4425.0,4424.8,0.40667]
[1757586543465,0.5466,4425.5,4424.9,0.40667]
[1757586543668,0.1978,4425.3,4424.9,0.40667]
[1757586543862,0.3132,4425.2,4424.9,0.40667]
[1757586544068,0.2257,4425.4,4424.9,0.40667]
[1757586544265,0.1247,4425.0,4424.9,0.40667]
[1757586544461,0.4379,4425.0,4424.9,0.40667]
[1757586544967,0.6357,4425.0,4424.9,0.40667]
[1757586545966,0.4379,4425.0,4424.9,0.40667]
[1757586547564,0.3132,4425.0,4424.9,0.40667]
[1757586547772,0.3132,4425.3,4425.2,0.40664]
[1757586549170,0.511,4425.3,4425.2,0.40664]
[1757586553275,0.511,4425.3,4425.2,0.44864]
[1757586555375,0.3132,4425.3,4425.2,0.44864]
[1757586560875,0.3475,4425.5,4425.4,0.40663]
[1757586560876,0.6607,4425.5,4425.4,0.40663]
[1757586561077,3.2078,4426.2,4426.0,0.40656]
[1757586561078,0.1978,4426.1,4426.0,0.40656]
[1757586561278,0.1978,4426.1,4426.0,4.29156]
[1757586561673,0.4063,4426.1,4426.0,4.29156]
[1757586563080,0.7195,4426.1,4426.0,4.29156]
[1757586567379,0.7195,4426.1,4426.0,3.2078]
[1757586567684,0.7195,4426.1,4426.0,3.4029]
[1757586568184,0.7195,4426.1,4426.0,3.2078]
[1757586570988,0.7195,4426.1,4426.0,3.4029]
[1757586573286,0.7195,4426.1,4426.0,3.6086]
[1757586575088,0.7195,4426.1,4426.0,3.6507]
[1757586576489,0.7195,4426.1,4426.0,3.9286]
[1757586578288,0.299,4426.4,4426.3,1.08525]
[1757586578587,0.7228,4426.7,4426.6,0.4008]
[1757586578791,0.7228,4426.7,4426.6,0.6787]
[1757586579291,0.9186,4426.7,4426.6,0.6787]
[1757586579689,0.9186,4426.7,4426.6,0.4008]
[1757586580783,0.9186,4426.7,4426.6,0.6783]
[1757586582589,0.9186,4426.7,4426.6,0.4008]
[1757586583295,0.299,4426.6,4426.0,3.5274]
[1757586583586,0.1968,4426.1,4426.0,3.9282]
[1757586583785,0.4958,4426.1,4426.0,3.9282]
[1757586585090,0.4958,4426.1,4426.0,4.33477]
[1757586585490,0.6916,4426.1,4426.0,3.6507]
[1757586585692,0.6916,4426.1,4426.0,0.0421]
[1757586595198,1.14454,4426.1,4426.0,0.0421]
[1757586595897,0.9186,4426.1,4426.0,0.0421]
[1757586596993,1.50738243,4426.1,4426.0,0.0421]
[1757586597698,1.50733486,4426.1,4426.0,0.0421]
[1757586598599,0.9186,4426.1,4426.0,0.0421]
[1757586600100,0.7228,4426.1,4426.0,0.7156]
[1757586601296,0.9369,4426.1,4426.0,0.4375]
[1757586601900,0.7228,4426.1,4426.0,0.7156]
[1757586602102,0.526,4426.1,4426.0,0.7156]
[1757586602310,0.7406,4426.1,4426.0,0.7156]
[1757586602505,0.9547,4426.1,4426.0,0.4375]
[1757586602903,0.9547,4426.1,4426.0,0.0421]
[1757586603112,0.9547,4426.1,4425.0,3.2078]
[1757586603113,0.7436,4425.1,4425.0,3.2078]
[1757586603312,0.4287,4424.6,4424.0,5.0]
[1757586603515,0.3428,4425.0,4424.0,3.8362]
[1757586603516,3.2078,4424.1,4424.0,3.8362]
[1757586603806,3.79644972,4424.1,4423.0,0.0919]
[1757586604012,3.2078,4423.1,4422.8,3.49e-05]
[1757586604203,0.81664972,4423.0,4422.0,0.125]
[1757586604406,3.2078,4422.4,4422.0,0.125]
[1757586604608,0.228,4422.3,4422.0,0.125]
[1757586605201,4.228,4422.3,4422.0,0.125]
[1757586605917,4.0,4422.3,4422.1,0.3118]
[1757586606210,0.228,4422.4,4422.3,0.7072]
[1757586606410,0.228,4422.4,4422.3,0.5065]
[1757586606801,4.228,4422.4,4422.3,0.3118]
[1757586608302,4.228,4422.4,4421.5,0.125]
[1757586608507,3.2078,4421.7,4421.5,0.125]
[1757586608716,0.228,4421.6,4421.5,0.125]
[1757586609210,0.228,4421.6,4421.5,0.3197]
[1757586609404,0.228,4421.6,4421.5,0.5204]
[1757586610217,3.2078,4422.2,4422.1,0.1947]
[1757586610419,3.4358,4422.2,4422.1,0.7072]
[1757586610622,3.4358,4422.2,4422.1,0.5065]
[1757586611023,3.4358,4422.2,4422.1,0.3118]
[1757586611210,3.4358,4422.2,4422.1,0.7072]
[1757586611414,3.4368,4422.2,4422.1,0.7072]
[1757586611919,7.4368,4422.2,4422.1,0.3118]
[1757586614112,7.4368,4422.2,4421.5,0.125]
[1757586614313,3.2078,4421.7,4421.5,0.3197]
[1757586614522,0.229,4421.6,4421.5,0.3197]
[1757586616117,0.229,4421.6,4421.5,0.6315]
[1757586617019,0.229,4421.6,4421.5,0.4368]
[1757586617219,0.229,4421.6,4421.5,0.6315]
[1757586622224,0.229,4421.6,4421.5,0.8322]
[1757586623822,3.2078,4421.7,4421.6,0.7072]
[1757586624121,3.4368,4421.7,4421.6,0.7072]
[1757586627218,4.01811865,4421.7,4421.6,0.7072]
[1757586627622,4.01811865,4421.7,4421.6,0.5065]
[1757586627825,4.01811865,4421.7,4421.6,0.3118]
[1757586628626,4.01811865,4421.7,4421.6,0.5057]
[1757586631036,4.01811865,4421.7,4421.6,0.7039]
[1757586631436,3.78911865,4421.7,4421.6,0.7039]
[1757586631636,4.01811865,4421.7,4421.6,0.7039]
[1757586634438,0.81031865,4421.7,4421.6,4.7039]
[1757586636243,1.21867725,4422.1,4421.6,4.7039]
[1757586636444,3.2078,4422.2,4422.1,0.7124]
[1757586636445,4.42647725,4422.2,4422.1,0.7124]
[1757586636739,3.4368,4422.2,4422.1,0.7124]
[1757586636940,1.21867725,4422.4,4422.2,0.3203]
[1757586637139,0.229,4422.3,4422.2,0.7124]
[1757586638249,3.2078,4422.7,4422.6,0.7124]
[1757586638546,3.4368,4422.7,4422.6,0.7124]
[1757586639541,3.2078,4422.7,4422.6,0.7124]
[1757586639748,3.2178,4423.3,4423.2,0.7124]
[1757586639938,3.4368,4423.3,4423.2,0.7124]
[1757586641341,3.4568,4423.3,4423.2,0.7124]
[1757586643532,3.4568,4423.3,4423.2,0.5142]
[1757586643736,0.0063,4423.2,4423.0,0.442]
[1757586643936,3.4368,4423.3,4423.0,0.442]
[1757586643937,0.2553,4423.1,4423.0,0.442]
[1757586644241,0.249,4423.1,4423.0,0.6359]
[1757586644943,0.249,4423.1,4423.0,0.8341]
[1757586653653,0.229,4423.1,4423.0,0.8341]
[1757586659160,0.2379,4423.1,4423.0,0.8341]
[1757586661365,0.229,4423.1,4423.0,0.8341]
[1757586664650,0.2468,4423.1,4423.0,0.8341]
[1757586665156,0.2524,4423.1,4423.0,0.442]
[1757586665558,0.80575574,4423.1,4423.0,0.442]
[1757586666063,0.80575574,4423.1,4423.0,0.6555]
[1757586669869,0.81135574,4423.1,4423.0,0.442]
[1757586670065,4.81135574,4423.1,4422.5,0.1217]
[1757586670365,3.2256,4422.6,4422.5,0.8611]
[1757586670564,4.01255574,4422.6,4422.5,0.8611]
[1757586670964,4.00365574,4422.6,4422.5,0.8611]
[1757586671163,4.01255574,4422.6,4422.0,1.1217]
[1757586671370,3.9419,4422.1,4422.0,1.4244]
[1757586671662,3.2078,4422.1,4422.0,1.5116]
[1757586671872,3.4368,4422.1,4422.0,1.5116]
[1757586673268,3.4368,4422.1,4422.0,1.8266]
[1757586673757,3.7475,4422.1,4422.0,1.8266]
[1757586674469,3.9579,4422.1,4422.0,1.7394]
[1757586674668,4.1709,4422.1,4422.0,1.4244]
[1757586674869,4.1709,4422.1,4422.0,1.2135]
[1757586676068,4.1709,4422.1,4422.0,1.7394]
[1757586676366,3.9579,4422.1,4422.0,1.7394]
[1757586676570,3.4368,4422.1,4422.0,1.8288]
[1757586677168,3.7475,4422.1,4422.0,1.8288]
[1757586677368,3.9579,4422.1,4422.0,1.7394]
[1757586677766,4.1709,4422.1,4422.0,1.0]
[1757586678072,3.7475,4422.1,4422.0,1.7394]
[1757586678373,3.9579,4422.1,4422.0,1.7394]
[1757586678576,4.1709,4422.1,4422.0,1.4244]
[1757586678868,4.1709,4422.1,4422.0,1.0]
[1757586679071,4.1709,4422.1,4422.0,1.2135]
[1757586679264,4.1709,4422.1,4422.0,1.7394]
[1757586679661,4.1709,4422.1,4422.0,1.4244]
[1757586679964,4.1709,4422.1,4422.0,0.4244]
[1757586680568,4.1709,4422.1,4421.3,0.315]
[1757586680569,0.3107,4421.9,4421.3,0.315]
[1757586680771,0.6524,4421.8,4421.7,0.2135]
[1757586681564,0.9631,4421.8,4421.7,0.2135]
[1757586681964,0.9631,4421.8,4421.7,0.7394]
[1757586683674,0.5211,4421.8,4421.7,0.7394]
[1757586683868,0.7501,4421.8,4421.7,0.7394]
[1757586685679,0.3107,4422.0,4421.7,0.4244]
[1757586685876,0.229,4421.8,4421.7,0.4244]
[1757586686173,0.3107,4422.3,4422.0,0.09]
[1757586686379,3.7289,4422.7,4422.6,0.7394]
[1757586686776,3.9579,4422.7,4422.6,0.7394]
[1757586686974,3.2078,4422.7,4422.6,0.7394]
[1757586687174,3.4368,4422.7,4422.6,0.7394]
[1757586688377,3.7347,4422.7,4422.6,0.7394]
[1757586689370,3.9479,4422.7,4422.6,0.7394]
[1757586689576,0.9338,4422.7,4422.6,0.7394]
[1757586690170,0.7401,4422.7,4422.6,0.7394]
[1757586693574,0.2979,4422.6,4422.3,3.2078]
[1757586693780,0.7048,4422.4,4421.7,3.2078]
[1757586693977,0.5111,4421.8,4421.7,3.9217]
[1757586694281,0.7048,4421.8,4421.7,3.9217]
[1757586695683,0.5111,4421.8,4421.7,3.9217]
[1757586696874,0.5269,4422.0,4421.8,0.3003]
[1757586697082,0.5269,4422.0,4421.9,0.7139]
[1757586697281,0.229,4422.0,4421.9,0.7139]
[1757586702083,0.2979,4422.7,4422.6,0.7139]
[1757586702779,0.5111,4422.7,4422.6,0.7139]
[1757586702979,0.228,4422.8,4422.7,0.7139]
[1757586703195,3.2078,4423.3,4422.8,0.3003]
[1757586703375,3.5057,4423.3,4423.2,0.7139]
[1757586703576,3.7189,4423.3,4423.2,0.7139]
[1757586704486,3.9126,4423.3,4423.2,0.7139]
[1757586705190,3.2078,4423.3,4422.6,16.40688]
[1757586705383,3.2078,4423.3,4422.6,16.63296999]
[1757586705686,3.2078,4423.3,4422.6,16.40688]
[1757586705886,3.2078,4423.3,4422.7,0.40687]
[1757586707288,3.2078,4423.3,4422.8,0.40686]
[1757586710190,3.421,4423.3,4423.2,0.7139]
[1757586710588,3.6147,4423.3,4423.2,0.7139]
[1757586710790,0.7048,4423.3,4423.2,0.7139]
[1757586711288,0.5111,4423.3,4423.2,0.7139]
[1757586711489,0.7048,4423.3,4423.2,0.7139]
[1757586711985,0.7048,4423.3,4423.2,0.4136]
[1757586713790,0.7048,4423.3,4423.2,0.1999]
[1757586714087,0.4069,4423.1,4423.0,3.2078]
[1757586714285,0.7048,4423.1,4423.0,3.2078]
[1757586714484,0.7048,4423.1,4423.0,3.4077]
[1757586722084,0.7048,4423.1,4423.0,3.9171]
[1757586722785,0.2979,4423.1,4423.0,3.9171]
[1757586723793,0.5036,4423.1,4423.0,3.9171]
[1757586724597,0.7006,4423.1,4423.0,3.9171]
[1757586726400,0.7006,4423.1,4423.0,3.6208]
[1757586726900,0.7006,4423.1,4423.0,3.9171]
[1757586727596,0.3245,4424.0,4423.9,0.2113]
[1757586727796,0.3245,4424.5,4424.4,0.4244]
[1757586727996,0.3245,4424.5,4424.4,0.7207]
[1757586728198,0.5032,4424.5,4424.4,0.7207]
[1757586728798,3.2078,4424.6,4424.5,0.2963]
[1757586728998,0.2057,4424.9,4424.8,0.2113]
[1757586729202,0.7002,4424.9,4424.8,0.5076]
[1757586729398,0.7002,4424.9,4424.8,0.2113]
[1757586730402,0.4027,4424.9,4424.5,3.5041]
[1757586730699,0.7002,4424.6,4424.5,3.4191]
[1757586731111,0.7002,4424.6,4424.5,3.2078]
[1757586733702,0.1201,4424.5,4424.1,0.2963]
[1757586733898,0.7002,4424.2,4424.1,0.7207]
[1757586739107,0.7002,4424.2,4424.1,0.7207]
[1757586742305,0.1201,4424.5,4424.1,0.7207]
[1757586742306,0.2975,4424.4,4424.2,0.2963]
[1757586742511,0.228,4424.8,4424.4,0.2963]
[1757586742709,0.7312,4424.8,4424.7,0.7207]
[1757586742912,0.9282,4424.8,4424.7,0.7207]
[1757586744013,0.9282,4424.8,4424.7,0.2113]
[1757586745112,0.9282,4424.8,4424.4,0.2963]
[1757586745306,0.8203,4424.5,4424.4,0.5076]
[1757586746306,0.8203,4424.5,4424.1,0.2963]
[1757586746512,0.2975,4424.4,4424.0,3.2078]
[1757586746820,0.7002,4424.1,4424.0,3.9285]
[1757586749012,0.7002,4424.1,4424.0,3.6322]
[1757586750012,0.7002,4424.1,4424.0,3.923]
[1757586753017,0.7002,4424.1,4424.0,3.6322]
[1757586754418,0.7002,4424.1,4423.7,0.2908]
[1757586754625,0.6957,4423.6,4423.5,3.913]
[1757586755011,0.6957,4423.6,4423.5,3.6222]
[1757586755520,0.6957,4423.6,4423.5,3.913]
[1757586760327,0.303,4424.4,4423.6,0.2908]
[1757586760530,0.76333366,4424.3,4423.6,0.2908]
[1757586760716,1.06633366,4424.2,4423.6,0.2908]
[1757586760922,0.5005,4424.2,4424.1,0.7052]
[1757586761124,1.2615069,4424.2,4424.1,0.7052]
[1757586765030,0.6957,4424.2,4424.1,0.7052]
[1757586766220,0.6957,4424.2,4424.1,0.4144]
[1757586766530,0.3927,4423.6,4423.5,3.4209]
[1757586766734,0.6957,4423.6,4423.5,3.4209]
[1757586766926,0.6957,4423.6,4423.5,3.7117]
[1757586767125,0.6957,4423.6,4423.5,3.913]
[1757586767931,0.6957,4423.6,4423.5,3.6222]
[1757586768435,0.6957,4423.6,4423.5,3.913]
[1757586771250,0.531,4423.8,4423.5,3.7277]
[1757586771538,0.531,4424.1,4424.0,0.7052]
[1757586772141,0.7285,4424.1,4424.0,0.7052]
[1757586772325,0.303,4424.4,4424.1,0.2908]
[1757586772527,0.303,4424.4,4424.3,0.7052]
[1757586772727,0.5005,4424.4,4424.3,0.7052]
[1757586773535,0.6957,4424.4,4424.3,0.7052]
[1757586775934,0.6957,4424.4,4424.3,0.4144]
[1757586776537,0.6957,4424.4,4423.6,0.40679]
[1757586776538,0.6957,4423.7,4423.6,0.2131]
[1757586776739,0.9237,4423.7,4423.6,0.2131]
[1757586778840,0.9237,4423.7,4423.6,0.5184]
[1757586781541,0.9237,4423.7,4423.6,0.2131]
[1757586781737,0.9237,4423.7,4423.0,4.72015]
[1757586781940,0.6981,4423.6,4423.5,0.1955]
[1757586782245,0.2977,4423.6,4423.5,0.6959]
[1757586783042,0.6981,4423.6,4423.5,0.6959]
[1757586783643,0.6981,4423.6,4423.5,0.3906]
[1757586784142,0.196,4423.2,4423.1,0.5004]
[1757586784344,0.6981,4423.2,4423.1,0.6959]
[1757586785334,0.5021,4423.2,4423.1,0.6959]
[1757586785530,0.1242,4423.5,4423.1,1.10274]
[1757586785731,0.4324,4423.7,4423.6,0.3906]
[1757586785935,0.7301,4423.7,4423.6,0.6959]
[1757586787235,0.1194,4424.0,4423.6,0.6959]
[1757586787441,0.2977,4423.9,4423.8,0.6959]
[1757586787640,0.9261,4423.9,4423.8,0.6959]
[1757586787941,0.9261,4423.9,4423.8,0.3906]
[1757586788340,0.9261,4423.9,4423.8,0.1955]
[1757586789138,0.6981,4423.9,4423.8,0.6959]
[1757586789344,0.9261,4423.9,4423.8,0.6959]
[1757586789548,0.7301,4423.9,4423.8,0.6959]
[1757586790342,0.228,4423.9,4423.8,0.6959]
[1757586790846,0.9261,4423.9,4423.8,0.3906]
[1757586791545,0.9261,4423.9,4423.8,0.6959]
[1757586792053,0.2977,4423.8,4423.5,3.2078]
[1757586792345,0.4004,4423.6,4423.5,3.4033]
[1757586792536,0.6981,4423.6,4423.5,3.9037]
[1757586793256,0.2977,4423.8,4423.7,0.3906]
[1757586793439,0.5021,4423.8,4423.7,0.6959]
[1757586793638,0.228,4423.9,4423.7,0.3906]
[1757586793834,0.228,4423.9,4423.8,0.3053]
[1757586794044,0.5257,4423.9,4423.8,0.6959]
[1757586794247,0.7301,4423.9,4423.8,0.6959]
[1757586794441,0.9261,4423.9,4423.8,0.6959]
[1757586796249,1.49174185,4423.9,4423.8,0.6959]
[1757586797453,1.49174185,4423.9,4423.8,0.1955]
[1757586798947,1.19404185,4423.9,4423.5,3.2078]
[1757586799253,0.6981,4423.2,4423.1,0.6959]
[1757586800948,0.2977,4423.4,4423.0,4.61464]
[1757586801150,0.2977,4423.3,4423.2,0.5004]
[1757586801451,0.2977,4423.3,4423.2,0.6959]
[1757586801647,0.3522,4423.5,4423.2,1.10273]
[1757586801851,0.2977,4423.4,4423.3,0.6959]
[1757586802349,0.1242,4424.0,4423.0,4.3133]
[1757586802350,0.6981,4423.9,4423.8,0.6959]
[1757586802556,1.50037912,4423.9,4423.8,0.6959]
[1757586802750,1.50037912,4423.9,4423.8,0.1955]
[1757586802954,0.6981,4423.6,4423.5,0.6959]
[1757586803255,1.27237912,4423.6,4423.5,0.6959]
[1757586803551,1.27237912,4423.6,4423.5,0.1955]
[1757586803854,0.6981,4423.2,4423.1,0.6959]
[1757586804856,0.6981,4423.2,4423.1,0.3906]
[1757586809752,0.6981,4423.2,4423.1,0.7019]
[1757586810049,0.6981,4423.2,4423.1,0.3906]
[1757586810652,0.6981,4423.2,4423.1,0.7019]
[1757586810849,0.6981,4423.2,4423.1,0.3906]
[1757586811054,0.6981,4423.2,4423.1,0.7019]
[1757586812455,0.3039,4423.4,4423.2,0.3113]
[1757586812655,0.3345,4423.5,4423.4,0.4051]
[1757586812861,0.3345,4423.5,4423.4,0.7164]
[1757586813159,0.8489,4423.5,4423.4,0.7164]
[1757586813358,0.8489,4423.5,4423.4,0.4051]
[1757586813658,0.8489,4423.5,4423.4,0.2079]
[1757586813862,0.4208,4423.1,4423.0,4.4157]
[1757586814063,0.7247,4423.1,4423.0,4.4157]
[1757586815470,0.7247,4422.2,4422.1,1.0]
[1757586815664,0.9087,4422.2,4422.1,1.0]
[1757586816057,1.48857689,4422.2,4422.1,1.0]
[1757586816252,0.9087,4422.2,4422.1,1.0]
[1757586816660,0.9087,4422.2,4422.1,1.2079]
[1757586819654,0.9087,4422.2,4422.1,1.0]
[1757586820451,0.9087,4422.2,4422.1,1.4051]
[1757586820658,4.0608,4423.0,4422.9,0.7164]
[1757586821066,4.0608,4423.0,4422.9,0.4051]
[1757586821366,4.0608,4423.0,4422.9,0.2079]
[1757586822260,4.0608,4423.0,4422.6,0.3113]
[1757586822866,3.7569,4423.0,4422.9,0.2079]
[1757586823065,4.0608,4423.0,4422.9,0.2079]
[1757586828176,4.0608,4423.0,4422.5,0.0521]
[1757586828369,4.0608,4423.0,4422.6,0.3113]
[1757586828574,4.0608,4423.0,4422.9,0.4051]
[1757586828874,0.7422,4423.0,4422.9,0.7164]
[1757586829377,0.5142,4423.0,4422.9,0.7164]
[1757586829672,0.7422,4423.0,4422.9,0.7164]
[1757586830076,0.5142,4423.0,4422.9,0.7164]
[1757586830266,0.7422,4423.0,4422.9,0.7164]
[1757586833580,0.228,4423.0,4422.9,0.7164]
[1757586833781,0.4383,4423.1,4423.0,0.7164]
[1757586833968,0.7422,4423.1,4423.0,0.7164]
[1757586835172,32.563,4423.3,4423.0,0.8222]
[1757586835470,0.228,4423.3,4423.2,0.7164]
[1757586835677,0.5319,4423.3,4423.2,0.7164]
[1757586836067,0.7422,4423.3,4423.2,0.7164]
[1757586836870,0.9527,4423.3,4423.2,0.7164]
[1757586837068,0.3039,4423.2,4423.1,3.2078]
[1757586837277,0.5098,4422.7,4422.6,0.7096]
[1757586839978,0.7164,4422.7,4422.6,0.7096]
[1757586840175,0.7164,4422.7,4422.5,0.0418]
[1757586841572,0.7164,4422.7,4422.6,0.1989]
[1757586842874,0.7164,4422.7,4422.5,0.0418]
[1757586844884,0.7164,4422.7,4422.6,0.1989]
[1757586848988,0.5098,4422.7,4422.6,0.7158]
[1757586849391,0.7164,4422.7,4422.6,0.7158]
[1757586849688,0.7164,4422.7,4422.6,0.3983]
[1757586849884,0.7164,4422.7,4422.6,0.1989]
[1757586850285,0.7164,4422.7,4422.5,0.0418]
[1757586853893,0.7164,4422.7,4422.6,0.7158]
[1757586854079,0.5098,4422.7,4422.6,1.12268]
[1757586855290,0.5098,4422.7,4422.6,0.7158]
[1757586855682,0.7164,4422.7,4422.6,0.7158]
[1757586856685,0.7164,4422.7,4422.6,0.3983]
[1757586856890,0.7164,4422.7,4422.6,0.1989]
[1757586857289,0.7164,4422.7,4422.5,0.0418]
[1757586857994,0.7164,4422.7,4422.6,0.1989]
[1757586858186,0.7164,4422.7,4422.6,0.3983]
[1757586864594,0.7164,4422.7,4422.6,0.4406]
[1757586864996,0.7164,4422.7,4422.6,0.2412]
[1757586865696,0.7164,4422.7,4422.6,0.0423]
[1757586867201,0.7164,4422.7,4422.6,0.2412]
[1757586867395,0.7164,4422.7,4422.6,0.4406]
[1757586868100,0.7164,4422.7,4422.6,0.7453]
[1757586870301,0.306,4422.7,4422.6,0.7453]
[1757586870507,0.5085,4422.7,4422.6,0.7453]
[1757586870800,0.721,4422.7,4422.6,0.7453]
[1757586872297,0.306,4422.7,4422.6,0.7453]
[1757586872503,0.5085,4422.7,4422.6,0.7453]
[1757586873298,0.2972,4423.0,4422.9,0.397]
[1757586873505,0.2972,4423.0,4422.9,1.10856]
[1757586873698,0.5433,4423.5,4423.4,0.1942]
[1757586873906,0.8405,4423.5,4423.4,0.4989]
[1757586875812,0.8405,4423.5,4423.4,0.1942]
[1757586876903,0.5358,4423.0,4422.9,3.402]
[1757586877103,0.833,4423.0,4422.9,3.402]
[1757586877600,0.833,4423.0,4422.9,3.2078]
[1757586878308,0.833,4423.0,4422.9,3.402]
[1757586880809,0.833,4423.0,4422.9,4.31636]
[1757586881205,0.7122,4423.0,4422.9,4.31636]
[1757586882809,0.2972,4423.0,4422.9,4.31636]
[1757586884213,0.2972,4423.0,4422.9,4.35896]
[1757586885604,0.415,4423.9,4423.3,0.3047]
[1757586885805,0.833,4423.5,4423.4,3.402]
[1757586886810,0.833,4423.5,4423.4,3.9095]
[1757586887410,0.7122,4423.5,4423.4,3.9095]
[1757586887613,0.4997,4423.5,4423.4,3.9095]
[1757586888112,0.833,4423.5,4423.4,3.9095]
[1757586888614,0.7122,4423.5,4423.4,3.9095]
[1757586890517,0.833,4423.5,4423.4,3.2078]
[1757586891219,0.833,4423.5,4423.4,3.402]
[1757586892517,0.833,4423.5,4423.4,3.9095]
[1757586895318,0.4997,4423.5,4423.4,3.9095]
[1757586895519,0.643,4423.9,4423.8,0.7017]
[1757586895719,0.643,4423.9,4423.8,0.397]
[1757586896124,0.9402,4423.9,4423.8,0.397]
[1757586897326,0.5064,4424.3,4424.2,0.712]
[1757586897526,0.3042,4424.3,4424.2,0.712]
[1757586898225,0.3042,4424.6,4424.5,0.4143]
[1757586898435,0.3042,4424.6,4424.5,3.9198]
[1757586898742,0.5064,4424.6,4424.5,3.9198]
[1757586899236,3.2078,4425.3,4424.5,3.9198]
[1757586899432,0.2022,4424.7,4424.6,0.4992]
[1757586899739,32.563,4425.7,4424.5,3.2078]
[1757586899939,0.9481,4425.4,4425.3,0.712]
[1757586900440,0.9481,4425.4,4425.3,0.4143]
[1757586900841,0.7201,4425.4,4425.3,0.712]
[1757586903242,0.7201,4425.4,4425.0,3.2078]
[1757586903243,3.9279,4425.9,4425.8,0.2128]
[1757586903446,4.1559,4425.9,4425.8,0.2128]
[1757586905043,0.7201,4425.9,4425.8,0.712]
[1757586905240,0.5064,4425.9,4425.8,0.712]
[1757586905638,0.7201,4425.9,4425.8,0.712]
[1757586907945,0.7201,4425.9,4425.8,0.7641]
[1757586911146,0.3042,4426.4,4426.0,0.40657]
[1757586911347,0.5064,4426.4,4426.3,3.9198]
[1757586911647,0.7201,4426.4,4426.3,3.9198]
[1757586912050,0.7201,4426.4,4426.3,3.6221]
[1757586913140,0.4159,4425.9,4425.8,0.4929]
[1757586913339,0.7201,4425.9,4425.8,0.4929]
[1757586915139,0.7201,4425.9,4425.8,0.2649]
[1757586915350,0.7201,4425.9,4425.8,0.7641]
[1757586916536,0.7201,4425.9,4425.8,0.5092]
[1757586917450,0.7201,4425.9,4425.8,0.8069]
[1757586917844,0.7201,4425.9,4425.8,0.5092]
[1757586918049,0.7201,4425.9,4425.8,0.3077]
[1757586918746,0.7201,4425.9,4425.8,0.0949]
[1757586925865,0.9481,4425.9,4425.8,0.0949]
[1757586927649,0.7201,4425.9,4425.8,0.3077]
[1757586927855,0.7201,4425.9,4425.8,0.8044]
[1757586930250,0.7201,4425.9,4425.8,4.0122]
[1757586933360,0.7201,4425.9,4425.8,0.8044]
[1757586934663,0.7201,4425.9,4425.8,0.5045]